bitfinex/quotes_SOLUSD_20260304
["timestamp","ask_amount","ask_price","bid_price","bid_amount"]
[1772600617008,3.79404646,85.229,85.21,5.67059972]
[1772600617402,3.79404646,85.229,85.2,5.67059972]
[1772600618501,3.79404646,85.229,85.2,5.66736331]
[1772600618502,11.7332332,85.228,85.2,5.66736331]
[1772600618725,15.52727966,85.228,85.2,5.66736331]
[1772600619208,10.57153407,85.228,85.2,5.66736331]
[1772600619503,3.79404646,85.227,85.2,5.66736331]
[1772600620504,14.9,85.22,85.2,5.66736331]
[1772600620687,11.73350855,85.226,85.201,3.79043675]
[1772600621586,3.79404646,85.259,85.221,3.79043675]
[1772600621791,3.79404646,85.257,85.221,3.79043675]
[1772600622921,3.79404646,85.255,85.221,3.79043675]
[1772600623613,3.79404646,85.255,85.23,5.66736331]
[1772600623910,58.62876601,85.283,85.2,5.66736331]
[1772600623911,3.79404646,85.272,85.241,3.79043675]
[1772600624301,3.79404646,85.272,85.24,5.66736331]
[1772600625115,3.79404646,85.27,85.232,3.79043675]
[1772600625499,3.79404646,85.27,85.24,5.66736331]
[1772600625698,3.79404646,85.27,85.232,3.79043675]
[1772600626015,3.79404646,85.27,85.24,5.66736331]
[1772600626620,3.79404646,85.27,85.24,9.45780006]
[1772600626825,3.79404646,85.288,85.251,3.79043675]
[1772600626992,15.51751332,85.299,85.271,3.79043675]
[1772600627392,7.69580479,85.298,85.271,3.79043675]
[1772600627702,11.72277447,85.305,85.271,3.79043675]
[1772600627909,11.72277447,85.305,85.25,5.66736331]
[1772600627910,11.72277447,85.305,85.28,5.66736331]
[1772600628416,11.72277447,85.305,85.29,5.66736331]
[1772600628621,11.72277447,85.305,85.281,3.87240239]
[1772600629116,3.71928175,85.323,85.291,3.87240239]
[1772600629921,11.72081037,85.319,85.291,3.87240239]
[1772600630620,11.71907044,85.331,85.31,5.66736331]
[1772600630822,3.71928175,85.329,85.29,5.66736331]
[1772600631004,3.71928175,85.326,85.291,3.87240239]
[1772600631205,3.71928175,85.324,85.291,3.87240239]
[1772600631406,3.71928175,85.322,85.291,3.87240239]
[1772600631807,11.71961981,85.327,85.3,5.66736331]
[1772600632416,15.43890156,85.327,85.3,4.40704288]
[1772600632597,15.43890156,85.327,85.3,5.66736331]
[1772600632804,11.71961981,85.327,85.3,5.66736331]
[1772600633318,3.71928175,85.333,85.3,5.66736331]
[1772600633516,3.71928175,85.331,85.3,5.66736331]
[1772600633737,11.42219779,85.33,85.3,5.66736331]
[1772600633914,7.70291604,85.329,85.3,5.66736331]
[1772600634118,7.70291604,85.328,85.3,5.66736331]
[1772600634319,7.70291604,85.327,85.3,5.66736331]
[1772600634505,7.70291604,85.326,85.3,5.66736331]
[1772600634705,7.70291604,85.325,85.3,5.66736331]
[1772600634924,3.71928175,85.323,85.29,5.66736331]
[1772600635106,3.71928175,85.321,85.29,5.66736331]
[1772600635314,19.42349738,85.32,85.29,5.66736331]
[1772600635513,7.70291604,85.319,85.29,5.66736331]
[1772600635715,3.71928175,85.317,85.29,5.66736331]
[1772600636021,7.70291604,85.316,85.29,5.66736331]
[1772600636220,7.70291604,85.315,85.29,5.66736331]
[1772600636417,19.42432167,85.314,85.29,5.66736331]
[1772600636622,7.70291604,85.313,85.29,5.66736331]
[1772600636826,7.70291604,85.312,85.29,5.66736331]
[1772600637012,7.70291604,85.311,85.29,5.66736331]
[1772600637325,7.70291604,85.31,85.29,5.66736331]
[1772600637619,7.70291604,85.309,85.29,5.66736331]
[1772600637826,11.72236744,85.307,85.29,5.66736331]
[1772600638013,7.70291604,85.306,85.29,5.66736331]
[1772600638216,7.70291604,85.305,85.29,5.66736331]
[1772600638407,7.70291604,85.304,85.29,5.66736331]
[1772600638612,11.72113085,85.316,85.29,7.78854265]
[1772600638918,7.72085426,85.315,85.29,7.78854265]
[1772600639224,7.72085426,85.314,85.29,7.78854265]
[1772600639427,7.72085426,85.313,85.29,7.78854265]
[1772600639719,7.72085426,85.312,85.29,7.78854265]
[1772600640027,7.72085426,85.311,85.29,7.78854265]
[1772600640221,9.62036165,85.331,85.3,5.66736331]
[1772600640436,11.71810916,85.338,85.32,5.66736331]
[1772600640718,11.71810916,85.338,85.33,5.66736331]
[1772600640911,11.71810916,85.338,85.32,5.66736331]
[1772600641418,11.71810916,85.338,85.33,5.66736331]
[1772600641812,11.71810916,85.338,85.32,5.66736331]
[1772600643419,11.71810916,85.338,85.33,5.66736331]
[1772600644530,11.71810916,85.338,85.32,5.66736331]
[1772600644706,11.71494243,85.362,85.331,0.02294255]
[1772600644912,11.71316794,85.374,85.35,5.66736331]
[1772600645112,15.7100068,85.374,85.35,5.66736331]
[1772600645311,3.99683886,85.373,85.35,5.66736331]
[1772600645510,3.99683886,85.369,85.33,5.66736331]
[1772600645731,3.99683886,85.368,85.33,5.66736331]
[1772600646611,3.99683886,85.366,85.33,5.66736331]
[1772600647025,3.99683886,85.366,85.304,0.28432314]
[1772600647026,3.99683886,85.366,85.34,5.66736331]
[1772600647216,3.99683886,85.366,85.35,5.66736331]
[1772600648237,3.99683886,85.366,85.34,5.66736331]
[1772600648631,11.71440285,85.365,85.34,5.66736331]
[1772600649131,11.71365943,85.371,85.35,5.66736331]
[1772600649310,11.71365943,85.371,85.304,0.28432314]
[1772600649311,11.71365943,85.371,85.36,5.66736331]
[1772600649710,11.71365943,85.371,85.35,5.66736331]
[1772600650332,3.99683886,85.37,85.35,5.66736331]
[1772600650830,15.71069283,85.369,85.35,5.66736331]
[1772600651429,3.99683886,85.368,85.331,0.06053527]
[1772600651747,3.99683886,85.368,85.34,5.66736331]
[1772600652335,7.7396188,85.367,85.34,5.66736331]
[1772600652548,7.7396188,85.367,85.337,0.06566333]
[1772600652549,7.7396188,85.366,85.35,5.66736331]
[1772600652763,7.7396188,85.365,85.35,5.66736331]
[1772600652971,7.7396188,85.364,85.35,5.66736331]
[1772600653167,7.7396188,85.363,85.35,5.66736331]
[1772600653338,7.7396188,85.362,85.35,5.66736331]
[1772600653532,7.7396188,85.361,85.35,5.66736331]
[1772600653738,7.7396188,85.36,85.35,5.66736331]
[1772600653933,7.7396188,85.359,85.34,5.66736331]
[1772600654140,7.7396188,85.358,85.35,5.66736331]
[1772600654455,7.7396188,85.357,85.35,5.66736331]
[1772600654630,7.7396188,85.356,85.35,5.66736331]
[1772600654834,7.7396188,85.355,85.35,5.66736331]
[1772600655047,7.7396188,85.354,85.35,5.66736331]
[1772600655254,7.7396188,85.353,85.34,5.66736331]
[1772600655450,7.7396188,85.352,85.34,5.66736331]
[1772600655637,7.7396188,85.351,85.34,5.66736331]
[1772600655833,7.7396188,85.35,85.34,5.66736331]
[1772600656154,11.71452297,85.365,85.34,5.66736331]
[1772600656454,11.71452297,85.365,85.35,5.66736331]
[1772600656834,15.71136183,85.365,85.35,5.66736331]
[1772600657643,3.99683886,85.364,85.35,5.66736331]
[1772600658056,11.71452297,85.365,85.35,5.66736331]
[1772600658258,11.61921351,85.365,85.34,5.66736331]
[1772600658436,11.61921351,85.365,85.35,5.66736331]
[1772600658851,11.61921351,85.365,85.34,5.66736331]
[1772600659243,4.04449359,85.37,85.34,5.66736331]
[1772600660437,4.04449359,85.37,85.33,5.66736331]
[1772600660638,4.04449359,85.364,85.33,5.66736331]
[1772600660857,4.04449359,85.364,85.331,0.02335159]
[1772600661247,11.71467731,85.363,85.34,5.66736331]
[1772600661439,4.04449359,85.362,85.312,0.02335159]
[1772600661639,4.04449359,85.362,85.301,1.17231919]
[1772600661640,4.04449359,85.353,85.311,0.02335159]
[1772600661841,4.04449359,85.352,85.32,5.66736331]
[1772600662270,4.04449359,85.351,85.32,5.66736331]
[1772600662447,4.04449359,85.35,85.32,5.66736331]
[1772600662943,4.04449359,85.348,85.32,5.66736331]
[1772600663344,4.04449359,85.347,85.32,5.66736331]
[1772600664359,4.04449359,85.347,85.33,5.66736331]
[1772600664565,4.04449359,85.347,85.32,5.66736331]
[1772600665056,11.71797185,85.339,85.32,5.66736331]
[1772600665263,4.04449359,85.338,85.32,5.66736331]
[1772600665864,4.04449359,85.338,85.298,0.04138556]
[1772600666167,4.04449359,85.333,85.31,5.66736331]
[1772600666364,4.04449359,85.326,85.3,5.66736331]
[1772600666558,4.04449359,85.319,85.3,5.66736331]
[1772600666872,13.66485524,85.318,85.3,5.66736331]
[1772600667344,9.62036165,85.315,85.3,5.66736331]
[1772600667548,4.04449359,85.314,85.3,5.66736331]
[1772600667957,4.04449359,85.314,85.28,5.71741237]
[1772600668165,9.62036165,85.304,85.28,5.66736331]
[1772600668365,9.62036165,85.294,85.265,0.05432483]
[1772600668671,17.44009832,85.293,85.28,5.66736331]
[1772600668864,7.81973667,85.292,85.28,5.66736331]
[1772600669064,7.81973667,85.291,85.28,5.66736331]
[1772600669251,7.81973667,85.29,85.28,5.66736331]
[1772600669453,7.81973667,85.289,85.28,5.66736331]
[1772600669655,4.04449359,85.287,85.27,5.66736331]
[1772600669862,7.81973667,85.286,85.27,5.66736331]
[1772600670065,7.81973667,85.285,85.27,5.66736331]
[1772600670272,7.81973667,85.284,85.27,5.66736331]
[1772600670463,9.62036165,85.289,85.27,5.66736331]
[1772600670464,7.81973667,85.283,85.27,5.66736331]
[1772600670660,7.81973667,85.282,85.27,5.66736331]
[1772600670862,7.81973667,85.281,85.27,5.66736331]
[1772600671060,7.81973667,85.28,85.27,5.66736331]
[1772600671376,7.81973667,85.279,85.27,5.66736331]
[1772600671558,17.44009832,85.278,85.27,5.66736331]
[1772600671759,2.15959273,85.277,85.27,5.66736331]
[1772600671961,4.04449359,85.295,85.27,5.66736331]
[1772600672155,4.0779712,85.295,85.27,5.66736331]
[1772600672356,4.0779712,85.295,85.28,5.66736331]
[1772600672952,4.0779712,85.302,85.28,5.66736331]
[1772600674774,4.0779712,85.302,85.27,5.66736331]
[1772600674972,4.0779712,85.298,85.27,5.66736331]
[1772600675356,4.0779712,85.289,85.25,5.66736331]
[1772600677071,4.0779712,85.318,85.271,0.0242683]
[1772600677275,4.0779712,85.318,85.27,5.66736331]
[1772600677569,58.60409216,85.319,85.27,5.66736331]
[1772600677570,4.0779712,85.309,85.27,5.66736331]
[1772600677881,4.0779712,85.289,85.253,0.0242683]
[1772600678062,4.0779712,85.289,85.25,5.66736331]
[1772600678464,4.0779712,85.289,85.25,5.66100283]
[1772600678765,4.0779712,85.289,85.26,5.66100283]
[1772600678969,4.0779712,85.289,85.25,5.66100283]
[1772600679288,4.0779712,85.287,85.26,5.66100283]
[1772600679878,4.0779712,85.279,85.25,5.66100283]
[1772600680978,4.0779712,85.277,85.241,0.03969246]
[1772600681181,4.0779712,85.277,85.25,5.66100283]
[1772600681564,4.0779712,85.277,85.26,5.66100283]
[1772600681763,4.0779712,85.277,85.25,5.66100283]
[1772600683170,4.2,85.28,85.26,5.66100283]
[1772600683368,11.7262163,85.279,85.26,5.66100283]
[1772600683570,4.0779712,85.278,85.26,5.66100283]
[1772600684171,4.0779712,85.278,85.25,5.66100283]
[1772600685286,4.0779712,85.276,85.24,0.1]
[1772600685485,4.0779712,85.276,85.24,5.76100283]
[1772600686368,4.0779712,85.276,85.25,5.66100283]
[1772600687089,4.0779712,85.276,85.246,0.05802941]
[1772600687090,4.0779712,85.276,85.26,5.66100283]
[1772600687282,4.0779712,85.276,85.25,5.66100283]
[1772600688366,11.72676634,85.275,85.25,5.66100283]
[1772600688590,15.80473754,85.275,85.25,5.66100283]
[1772600689383,11.7262163,85.279,85.26,5.66100283]
[1772600689583,15.8041875,85.279,85.26,5.66100283]
[1772600690689,4.0779712,85.278,85.26,5.66100283]
[1772600692494,11.72649131,85.277,85.26,1.90180778]
[1772600693972,11.72562548,85.284,85.27,1.90180778]
[1772600694287,11.72429155,85.293,85.271,0.08861988]
[1772600694490,11.72356616,85.299,85.28,5.65676672]
[1772600696197,4.0779712,85.298,85.28,5.65676672]
[1772600696390,4.0779712,85.298,85.27,5.75170235]
[1772600696775,4.0779712,85.298,85.28,5.65676672]
[1772600697182,4.0779712,85.305,85.28,5.65676672]
[1772600699490,11.7227797,85.304,85.28,5.65676672]
[1772600699802,15.8007509,85.304,85.28,5.65676672]
[1772600700300,11.7227797,85.304,85.281,0.10717416]
[1772600700593,11.72222538,85.309,85.291,0.10717416]
[1772600701387,11.72146629,85.314,85.291,0.10717416]
[1772600702085,4.0779712,85.313,85.283,0.11310281]
[1772600702282,4.0779712,85.313,85.29,5.65676672]
[1772600702683,4.0779712,85.313,85.283,0.11310281]
[1772600702900,4.0779712,85.309,85.263,0.11603729]
[1772600703104,4.0779712,85.309,85.27,5.65676672]
[1772600703600,4.0779712,85.309,85.28,5.65676672]
[1772600704485,4.0779712,85.307,85.28,5.65676672]
[1772600704693,4.0779712,85.307,85.28,5.77569671]
[1772600704893,4.0779712,85.307,85.281,0.12178488]
[1772600705698,4.0779712,85.326,85.291,0.12178488]
[1772600705998,4.0779712,85.326,85.301,0.12457188]
[1772600706196,11.71934512,85.329,85.31,5.65676672]
[1772600706397,11.71934512,85.329,85.31,0.12457188]
[1772600706598,11.71934512,85.329,85.31,5.7813386]
[1772600707195,11.71934512,85.329,85.32,5.65676672]
[1772600707389,11.71934512,85.329,85.31,5.7813386]
[1772600708696,4.0779712,85.328,85.31,5.65676672]
[1772600710809,5.65676672,85.35,85.31,5.65676672]
[1772600710810,4.0779712,85.34,85.31,5.65676672]
[1772600713913,4.0779712,85.338,85.31,5.65676672]
[1772600715195,11.71797185,85.339,85.311,0.14845961]
[1772600715513,4.15221278,85.376,85.33,5.65676672]
[1772600715710,4.15221278,85.376,85.35,5.65676672]
[1772600715912,4.15221278,85.374,85.34,5.65676672]
[1772600716213,4.15221278,85.359,85.309,11.7219977]
[1772600716417,4.15221278,85.359,85.32,5.65676672]
[1772600716713,4.15221278,85.359,85.32,1.89901424]
[1772600717324,4.15221278,85.359,85.33,1.89901424]
[1772600717695,4.15221278,85.359,85.32,1.89901424]
[1772600718204,4.15221278,85.349,85.31,1.89901424]
[1772600718393,4.15221278,85.349,85.276,12.07136974]
[1772600718394,4.15221278,85.339,85.284,0.14216157]
[1772600718719,4.15221278,85.339,85.3,1.89901424]
[1772600720795,4.15221278,85.337,85.3,1.89901424]
[1772600721709,4.15221278,85.319,85.257,11.72924217]
[1772600722015,4.15221278,85.319,85.252,29.32467874]
[1772600722016,4.15221278,85.309,85.264,0.02237441]
[1772600722417,4.15221278,85.299,85.26,1.89901424]
[1772600722610,4.15221278,85.299,85.216,4.82477569]
[1772600722611,4.15221278,85.299,85.27,1.89901424]
[1772600723221,11.7236043,85.298,85.27,1.89901424]
[1772600723714,15.87581708,85.298,85.27,1.89901424]
[1772600724103,11.7236043,85.298,85.27,1.89901424]
[1772600724314,4.15221278,85.297,85.27,1.89901424]
[1772600724517,11.72387919,85.296,85.27,5.65817212]
[1772600725220,4.15221278,85.295,85.27,5.65817212]
[1772600726017,4.15221278,85.295,85.254,0.03174537]
[1772600726198,4.15221278,85.289,85.25,5.65817212]
[1772600726398,4.15221278,85.289,85.27,5.65817212]
[1772600726599,11.72497889,85.288,85.27,5.65817212]
[1772600727115,3.69383402,85.329,85.233,3.69383402]
[1772600727116,4.16921887,85.317,85.28,5.65817212]
[1772600727416,4.16921887,85.317,85.29,5.65817212]
[1772600727597,4.16921887,85.317,85.258,0.28432314]
[1772600727805,4.16921887,85.317,85.28,5.65817212]
[1772600728525,4.16921887,85.317,85.29,5.65817212]
[1772600729123,11.72113085,85.316,85.29,5.65817212]
[1772600729309,4.16921887,85.315,85.29,5.65817212]
[1772600730916,4.16921887,85.315,85.269,0.28432314]
[1772600731115,4.16921887,85.313,85.28,5.65817212]
[1772600731517,4.16921887,85.299,85.26,5.65817212]
[1772600732205,4.16921887,85.299,85.27,5.65817212]
[1772600734612,99.63194785,85.314,85.26,5.65817212]
[1772600734613,4.16921887,85.297,85.26,5.65817212]
[1772600734913,4.16921887,85.297,85.27,5.65817212]
[1772600736627,4.16921887,85.297,85.26,5.65817212]
[1772600736820,11.72387919,85.296,85.26,5.65817212]
[1772600737005,4.16921887,85.295,85.27,5.65817212]
[1772600737803,5.65817212,85.31,85.27,5.65817212]
[1772600738513,41.02732418,85.309,85.27,5.65817212]
[1772600738913,41.02732418,85.309,85.259,3.83804016]
[1772600739129,5.65817212,85.3,85.26,5.65817212]
[1772600739322,99.63778731,85.309,85.27,5.65817212]
[1772600739817,4.11376274,85.308,85.27,5.65817212]
[1772600740628,4.11376274,85.308,85.27,5.65896447]
[1772600742035,4.11376274,85.306,85.265,3.83804016]
[1772600742210,4.11376274,85.306,85.27,5.65896447]
[1772600742832,4.11376274,85.289,85.25,5.65896447]
[1772600743623,4.11376274,85.289,85.247,3.83804016]
[1772600743624,4.11376274,85.279,85.247,3.83804016]
[1772600743823,4.11376274,85.279,85.241,3.83804016]
[1772600744027,4.11376274,85.277,85.241,3.83804016]
[1772600744725,4.11376274,85.277,85.23,11.73282205]
[1772600744726,4.11376274,85.269,85.23,1.9023909]
[1772600744926,4.11376274,85.269,85.23,5.74043106]
[1772600745126,4.11376274,85.259,85.22,1.9023909]
[1772600745425,4.11376274,85.249,85.215,3.83804016]
[1772600745724,4.11376274,85.249,85.22,1.9023909]
[1772600746108,1.9023909,85.26,85.22,1.9023909]
[1772600746109,4.11376274,85.247,85.22,1.9023909]
[1772600746316,15.84359108,85.253,85.23,5.74043106]
[1772600746917,15.84359108,85.253,85.231,3.83804016]
[1772600747115,11.72982834,85.253,85.231,3.83804016]
[1772600747822,11.7291046,85.258,85.231,3.83804016]
[1772600749832,3.81439743,85.258,85.231,3.83804016]
[1772600750219,3.81439743,85.258,85.224,3.82750228]
[1772600751618,3.81439743,85.258,85.226,3.82750228]
[1772600752030,3.81439743,85.256,85.226,3.82750228]
[1772600752244,3.81439743,85.256,85.228,3.82750228]
[1772600753628,3.81439743,85.256,85.221,3.82750228]
[1772600754445,41.05331065,85.255,85.221,3.82750228]
[1772600754639,3.81439743,85.254,85.221,3.82750228]
[1772600755024,3.81439743,85.254,85.223,3.82750228]
[1772600756643,3.81439743,85.252,85.223,3.82750228]
[1772600757747,11.72979249,85.253,85.231,3.82750228]
[1772600758846,3.81439743,85.256,85.231,3.82750228]
[1772600760548,11.72924217,85.257,85.21,2.0023909]
[1772600760549,3.81439743,85.249,85.21,2.0023909]
[1772600760756,3.81439743,85.229,85.21,0.1]
[1772600760942,3.81439743,85.219,85.182,3.82750228]
[1772600761144,3.81439743,85.219,85.181,3.82750228]
[1772600761528,41.06631622,85.228,85.18,0.1]
[1772600761529,3.81439743,85.209,85.18,0.1]
[1772600763226,3.81439743,85.207,85.18,0.1]
[1772600764857,3.81439743,85.205,85.18,0.1]
[1772600765551,11.73476309,85.217,85.191,3.82750228]
[1772600765736,3.81439743,85.216,85.191,3.82750228]
[1772600767048,1.9023909,85.21,85.18,0.1]
[1772600767255,3.81439743,85.209,85.18,0.1]
[1772600768236,1.9023909,85.2,85.17,0.1]
[1772600768436,3.81439743,85.199,85.17,0.1]
[1772600769875,3.81439743,85.199,85.141,29.36282346]
[1772600769876,3.81439743,85.197,85.154,3.82750228]
[1772600770038,3.81439743,85.169,85.14,0.1]
[1772600770242,3.81439743,85.169,85.14,2.0023909]
[1772600770557,3.81439743,85.169,85.14,0.1]
[1772600771942,3.81439743,85.167,85.14,0.1]
[1772600773655,3.81439743,85.179,85.151,3.82750228]
[1772600774051,3.81439743,85.177,85.151,3.82750228]
[1772600774244,3.81439743,85.177,85.14,2.0023909]
[1772600774444,3.81439743,85.183,85.151,3.82750228]
[1772600774663,3.81439743,85.183,85.16,5.72989318]
[1772600774842,3.81439743,85.198,85.17,1.9023909]
[1772600775150,3.81439743,85.198,85.168,3.82750228]
[1772600775339,3.81439743,85.198,85.17,1.9023909]
[1772600775540,3.81439743,85.218,85.181,3.82750228]
[1772600775740,3.81439743,85.223,85.2,1.9023909]
[1772600775952,58.64619508,85.258,85.21,1.9023909]
[1772600775953,3.81439743,85.238,85.21,1.9023909]
[1772600776154,3.81439743,85.236,85.21,1.9023909]
[1772600776381,3.81439743,85.236,85.203,3.82750228]
[1772600776558,3.81439743,85.252,85.221,3.82750228]
[1772600776738,11.73006768,85.251,85.23,5.66703539]
[1772600776939,3.81439743,85.25,85.22,5.66703539]
[1772600777564,3.81439743,85.25,85.221,3.82750228]
[1772600778258,11.73034287,85.249,85.221,3.82750228]
[1772600778565,15.87321538,85.249,85.222,11.73405928]
[1772600779165,11.72820894,85.265,85.223,3.84879858]
[1772600779356,11.72820894,85.265,85.24,5.66703539]
[1772600779357,4.14287251,85.264,85.24,5.66703539]
[1772600779556,11.72539133,85.285,85.241,3.84879858]
[1772600779763,4.14287251,85.284,85.241,3.84879858]
[1772600779940,4.14287251,85.284,85.25,5.66703539]
[1772600780265,3.91258227,85.282,85.243,3.80961085]
[1772600780870,3.91258227,85.279,85.243,3.80961085]
[1772600781769,3.91258227,85.279,85.25,5.66703539]
[1772600781946,3.91258227,85.279,85.243,3.80961085]
[1772600782284,11.72566631,85.283,85.253,3.80961085]
[1772600782558,3.91258227,85.282,85.253,3.80961085]
[1772600782942,3.91258227,85.282,85.25,5.66703539]
[1772600783550,3.91258227,85.279,85.24,5.66703539]
[1772600783765,3.91258227,85.279,85.24,9.47664624]
[1772600783969,3.91258227,85.279,85.24,5.66703539]
[1772600784271,3.91258227,85.279,85.251,3.80961085]
[1772600784649,15.63891852,85.279,85.251,3.80961085]
[1772600785154,3.91258227,85.286,85.261,3.80961085]
[1772600785864,3.91258227,85.286,85.26,5.66703539]
[1772600786066,3.91258227,85.286,85.253,3.80961085]
[1772600786563,3.91258227,85.284,85.253,3.80961085]
[1772600789365,3.91258227,85.282,85.26,5.66703539]
[1772600789546,3.91258227,85.282,85.253,3.80961085]
[1772600790267,3.91258227,85.282,85.25,5.66703539]
[1772600790463,3.91258227,85.279,85.24,9.47664624]
[1772600790662,3.91258227,85.269,85.232,3.80961085]
[1772600790974,3.91258227,85.269,85.23,5.66703539]
[1772600791151,3.91258227,85.259,85.22,5.66703539]
[1772600791346,41.03983208,85.283,85.21,5.66703539]
[1772600791347,5.66703539,85.25,85.21,5.66703539]
[1772600791564,3.91258227,85.249,85.211,3.80961085]
[1772600791945,3.91258227,85.239,85.2,5.66703539]
[1772600792563,3.91258227,85.229,85.192,3.80961085]
[1772600792752,3.91258227,85.229,85.2,5.66703539]
[1772600793369,3.91258227,85.227,85.192,3.80961085]
[1772600795677,20.56703539,85.23,85.18,5.66703539]
[1772600795678,3.91258227,85.209,85.18,5.66703539]
[1772600795979,3.91258227,85.225,85.191,3.80961085]
[1772600796857,11.73290762,85.231,85.21,5.66703539]
[1772600797057,3.91258227,85.233,85.21,5.66703539]
[1772600798159,3.91258227,85.233,85.205,11.73627852]
[1772600798160,3.91258227,85.231,85.181,3.80961085]
[1772600798363,3.91258227,85.231,85.201,3.80961085]
[1772600798960,3.91258227,85.231,85.21,5.66703539]
[1772600801876,3.91258227,85.231,85.207,15.54573567]
[1772600801877,3.91258227,85.229,85.19,5.66703539]
[1772600802065,3.91258227,85.227,85.2,5.66703539]
[1772600802466,3.91258227,85.227,85.2,5.66841015]
[1772600802774,3.91258227,85.227,85.192,11.73819137]
[1772600802977,3.91258227,85.227,85.191,3.80961085]
[1772600803375,3.91258227,85.227,85.192,11.73819137]
[1772600803575,3.91258227,85.227,85.2,5.66841015]
[1772600803772,3.91258227,85.227,85.183,3.80961085]
[1772600803981,3.91258227,85.219,85.18,5.66841015]
[1772600804286,3.91258227,85.217,85.181,15.54931806]
[1772600804680,3.91258227,85.217,85.182,3.80961085]
[1772600806863,3.91258227,85.215,85.183,15.54904242]
[1772600807260,3.91258227,85.215,85.183,11.73943157]
[1772600807461,3.91258227,85.215,85.183,15.54904242]
[1772600807863,3.91258227,85.215,85.184,3.80961085]
[1772600808279,3.91258227,85.215,85.191,3.91374858]
[1772600810086,11.73516088,85.214,85.19,5.66841015]
[1772600810279,4.15357826,85.213,85.187,11.73884846]
[1772600810485,4.15357826,85.213,85.19,5.66841015]
[1772600811660,4.15357826,85.213,85.191,3.91374858]
[1772600811986,4.15357826,85.213,85.192,11.73819137]
[1772600812866,4.15357826,85.213,85.192,15.65193995]
[1772600813073,4.15357826,85.213,85.192,11.73819137]
[1772600813283,4.15357826,85.213,85.193,3.91374858]
[1772600813662,4.2,85.22,85.2,5.66841015]
[1772600813869,4.2,85.22,85.201,3.91374858]
[1772600814284,4.15357826,85.219,85.2,5.66841015]
[1772600816388,4.2,85.22,85.202,3.91374858]
[1772600818470,4.2,85.22,85.203,11.73667593]
[1772600818670,4.2,85.22,85.203,15.65042451]
[1772600818888,4.2,85.22,85.21,5.81819648]
[1772600819183,4.15357826,85.236,85.21,5.81819648]
[1772600819570,4.15357826,85.234,85.21,3.91374858]
[1772600819888,4.15357826,85.234,85.203,3.91374858]
[1772600821893,4.15357826,85.232,85.204,11.73653819]
[1772600822085,4.15357826,85.232,85.204,15.65028677]
[1772600822485,4.15357826,85.232,85.205,3.91374858]
[1772600824888,4.15357826,85.232,85.179,58.69945811]
[1772600824889,4.15357826,85.219,85.182,3.91374858]
[1772600826672,4.15357826,85.219,85.181,11.73956981]
[1772600826873,1.9044479,85.23,85.176,15.65402356]
[1772600826874,4.15357826,85.209,85.176,15.65402356]
[1772600827276,4.15357826,85.209,85.171,11.74105711]
[1772600827474,4.15357826,85.209,85.172,3.91374858]
[1772600830101,4.15357826,85.207,85.174,3.91374858]
[1772600830491,4.15357826,85.22,85.191,3.91374858]
[1772600830698,4.15357826,85.22,85.2,5.81819648]
[1772600830898,4.15357826,85.22,85.194,3.91374858]
[1772600831084,4.15357826,85.22,85.2,5.81819648]
[1772600831288,4.15357826,85.238,85.201,3.91374858]
[1772600833601,4.15357826,85.249,85.211,3.91374858]
[1772600833906,4.15357826,85.239,85.202,15.65056226]
[1772600834288,4.15357826,85.229,85.193,3.91374858]
[1772600834489,4.15357826,85.229,85.194,11.73791581]
[1772600834887,4.15357826,85.229,85.193,3.91374858]
[1772600835102,4.15357826,85.229,85.189,11.73847341]
[1772600835703,4.15357826,85.227,85.19,1.9044479]
[1772600836502,4.15357826,85.219,85.183,11.73943045]
[1772600837001,4.15357826,85.219,85.18,1.9044479]
[1772600837303,4.15357826,85.209,85.173,3.91374858]
[1772600837505,4.15357826,85.209,85.18,1.9044479]
[1772600837885,4.15357826,85.207,85.18,1.9044479]
[1772600838081,4.15357826,85.207,85.182,3.72347132]
[1772600838512,15.69985052,85.213,85.19,5.62791922]
[1772600838809,3.96451276,85.212,85.19,5.62791922]
[1772600839888,4.09545005,85.217,85.192,11.73819137]
[1772600841604,14.9,85.21,85.192,11.73819137]
[1772600841800,4.09545005,85.217,85.192,11.73819137]
[1772600843206,11.73488546,85.216,85.192,11.73819137]
[1772600843414,4.09545005,85.215,85.192,11.73819137]
[1772600843601,4.09545005,85.215,85.19,1.9044479]
[1772600844712,4.09545005,85.213,85.19,1.9044479]
[1772600846014,4.09545005,85.253,85.201,3.96486652]
[1772600846223,4.09545005,85.253,85.221,3.96486652]
[1772600846610,11.73034287,85.249,85.221,3.96486652]
[1772600846805,4.09545005,85.248,85.23,1.9044479]
[1772600847120,14.9,85.25,85.23,1.9044479]
[1772600847301,14.9,85.25,85.24,1.9044479]
[1772600847621,4.09545005,85.264,85.241,3.96486652]
[1772600847915,4.11585367,85.27,85.23,1.9044479]
[1772600848100,4.11585367,85.27,85.25,1.9044479]
[1772600848820,4.11585367,85.268,85.25,1.9044479]
[1772600849722,29.3123121,85.289,85.23,1.9044479]
[1772600849723,4.11585367,85.289,85.26,1.9044479]
[1772600850017,4.11585367,85.289,85.231,11.73282021]
[1772600850018,4.11585367,85.288,85.27,1.9044479]
[1772600851004,11.72407348,85.295,85.27,1.9044479]